bitfinex/quotes_SOLUSD_20250802
["timestamp","ask_amount","ask_price","bid_price","bid_amount"]
[1754138905650,74.29785129,164.14,164.13,0.06]
[1754138910643,79.399109,164.14,164.13,0.06]
[1754138911264,68.2594902,164.14,164.13,0.06]
[1754138911460,73.61785129,164.14,164.13,0.06]
[1754138912170,74.32785129,164.14,164.13,0.06]
[1754138912348,79.429109,164.14,164.13,0.06]
[1754138912544,78.719109,164.14,164.13,0.06]
[1754138912857,73.61785129,164.14,164.13,0.06]
[1754138913262,8.63480623,164.14,164.13,6.08836109]
[1754138913461,4.54850257,164.14,164.13,11.44672209]
[1754138913659,3.10850257,164.14,164.13,11.44672209]
[1754138913843,0.03,164.15,164.13,11.44672209]
[1754138914145,0.03,164.17,164.14,10.76672218]
[1754138914354,0.03,164.17,164.16,10.71672218]
[1754138914554,42.87,164.17,164.13,5.418361]
[1754138914780,42.87,164.17,164.15,5.35836109]
[1754138915363,0.71,164.16,164.13,10.77672209]
[1754138915570,42.84,164.15,164.13,10.77672209]
[1754138916279,42.84,164.15,164.13,0.06]
[1754138916574,42.84,164.15,164.13,5.41836109]
[1754138916949,42.84,164.15,164.13,0.06]
[1754138919257,0.71,164.14,164.13,0.06]
[1754138919459,4.80709441,164.14,164.13,0.06]
[1754138919664,4.80717403,164.14,164.13,0.06]
[1754138919865,4.09717403,164.14,164.13,0.06]
[1754138920070,4.09717403,164.14,164.13,5.41836109]
[1754138920257,43.78,164.14,164.13,0.06]
[1754138920457,43.78,164.14,164.13,5.41836109]
[1754138920653,0.03,164.17,164.13,5.41836109]
[1754138920855,43.83,164.17,164.16,5.35836109]
[1754138921585,0.03,164.17,164.16,5.35836109]
[1754138921764,0.03,164.17,164.16,10.71672218]
[1754138922147,0.03,164.18,164.16,10.71672218]
[1754138922382,0.03,164.18,164.17,5.35836109]
[1754138922585,0.2,164.23,164.22,5.35836109]
[1754138922768,0.2,164.23,164.22,10.71672218]
[1754138923082,0.2,164.23,164.22,27.50140615]
[1754138923377,0.2,164.25,164.24,27.50140615]
[1754138924388,43.8,164.31,164.25,16.78468397]
[1754138924594,0.2,164.32,164.3,5.35836109]
[1754138924902,0.2,164.32,164.31,5.35836109]
[1754138926791,0.2,164.32,164.31,8.90653535]
[1754138928073,0.91,164.32,164.24,10.0]
[1754138928273,0.91,164.32,164.31,8.90653535]
[1754138929397,0.2,164.32,164.31,8.90653535]
[1754138931790,26.91,164.32,164.29,8.90653535]
[1754138931992,0.71,164.31,164.29,8.90653535]
[1754138932172,26.2,164.32,164.29,8.90653535]
[1754138932173,0.71,164.3,164.29,18.305519]
[1754138932374,26.91,164.32,164.29,27.21205435]
[1754138932676,0.71,164.31,164.29,27.21205435]
[1754138932878,0.71,164.31,164.29,8.90653535]
[1754138933401,0.71,164.31,164.29,27.21205535]
[1754138933579,0.71,164.31,164.29,8.90653535]
[1754138935604,26.2,164.32,164.3,8.90653535]
[1754138935973,26.91,164.32,164.29,18.305519]
[1754138936182,26.91,164.32,164.3,8.90653535]
[1754138937913,26.2,164.32,164.31,8.90653535]
[1754138938398,0.2,164.32,164.31,8.90653535]
[1754138938585,0.2,164.32,164.31,27.20982035]
[1754138940386,0.2,164.32,164.21,125.6]
[1754138940387,0.91,164.32,164.21,125.6]
[1754138940577,52.48653535,164.31,164.26,8.90653535]
[1754138940779,0.7,164.3,164.27,18.306636]
[1754138940986,0.7,164.3,164.26,8.90653535]
[1754138941609,9.60653535,164.3,164.26,8.90653535]
[1754138941816,0.7,164.29,164.26,8.90653535]
[1754138942190,0.7,164.28,164.26,8.90653535]
[1754138942944,0.2,164.32,164.27,8.90653535]
[1754138943207,0.9,164.32,164.3,8.90653535]
[1754138943387,0.2,164.32,164.3,8.90653535]
[1754138944020,0.2,164.32,164.31,8.90653535]
[1754138947114,0.2,164.32,164.31,27.20758735]
[1754138948616,0.9,164.32,164.31,18.301052]
[1754138949331,0.2,164.32,164.31,27.20758735]
[1754138949930,0.2,164.32,164.31,8.90653535]
[1754138956814,0.2,164.32,164.31,5.34442328]
[1754138957912,0.2,164.32,164.28,2.44014]
[1754138958091,0.2,164.32,164.31,5.34442328]
[1754138959317,0.9,164.32,164.31,5.34442328]
[1754138959620,0.9,164.32,164.26,0.06]
[1754138959621,26.9,164.32,164.26,0.06]
[1754138959824,0.7,164.31,164.28,5.34442328]
[1754138960321,0.7,164.31,164.26,0.06]
[1754138960508,26.0,164.3,164.27,5.34442328]
[1754138960711,0.7,164.29,164.28,5.34442328]
[1754138961423,26.0,164.3,164.28,5.34442328]
[1754138961627,26.0,164.3,164.29,5.34442328]
[1754138962217,0.9,164.32,164.29,5.34442328]
[1754138962412,26.9,164.32,164.3,5.34442328]
[1754138964319,26.9,164.32,164.31,5.34442328]
[1754138965099,26.2,164.32,164.31,5.34442328]
[1754138966129,30.29482151,164.32,164.31,5.34442328]
[1754138966929,30.99482151,164.32,164.31,5.34442328]
[1754138967821,30.29482151,164.32,164.31,5.34442328]
[1754138968132,30.29482151,164.32,164.26,18.362169]
[1754138968336,26.2,164.32,164.31,5.34442328]
[1754138968633,31.00742497,164.32,164.31,5.34442328]
[1754138971220,4.30742497,164.32,164.31,5.34442328]
[1754138971424,0.2,164.32,164.31,5.34442328]
[1754138971637,4.30742497,164.32,164.31,5.34442328]
[1754138971842,0.2,164.32,164.31,5.34442328]
[1754138972015,4.30742497,164.32,164.31,5.34442328]
[1754138972342,0.2,164.32,164.31,10.68884656]
[1754138972531,0.2,164.32,164.31,5.34442328]
[1754138973043,0.86,164.32,164.31,5.34442328]
[1754138973812,0.86,164.32,164.3,5.34442328]
[1754138974005,0.66,164.31,164.29,5.34442328]
[1754138974642,0.2,164.32,164.29,5.34442328]
[1754138974643,0.66,164.3,164.29,5.34442328]
[1754138974833,0.2,164.32,164.29,5.34442328]
[1754138975139,0.2,164.32,164.31,5.34442328]
[1754138975517,0.86,164.32,164.31,5.34442328]
[1754138976335,0.2,164.32,164.31,5.34442328]
[1754138978241,0.86,164.32,164.31,5.34442328]
[1754138979050,0.86,164.32,164.28,5.34442328]
[1754138979249,0.66,164.31,164.28,5.34442328]
[1754138979818,30.76877093,164.31,164.26,5.40442328]
[1754138980122,4.76877093,164.3,164.26,5.40442328]
[1754138980416,0.66,164.29,164.27,5.34442328]
[1754138980936,0.66,164.28,164.27,5.34442328]
[1754138981847,26.66,164.28,164.26,0.06]
[1754138982036,32.00442328,164.28,164.26,0.06]
[1754138982227,0.66,164.27,164.26,0.06]
[1754138982424,5.34442328,164.26,164.24,0.06]
[1754138982626,0.66,164.25,164.24,0.06]
[1754138983623,0.66,164.25,164.24,5.40442328]
[1754138984752,69.98,164.28,164.24,5.40442328]
[1754138984931,69.98,164.28,164.27,5.34442328]
[1754138985732,69.32,164.28,164.27,5.34442328]
[1754138985932,0.66,164.3,164.27,5.34442328]
[1754138986147,0.66,164.29,164.27,5.34442328]
[1754138987430,0.66,164.28,164.27,5.34442328]
[1754138988023,4.7648774,164.3,164.27,5.34442328]
[1754138988240,4.1048774,164.3,164.27,5.34442328]
[1754138988435,0.66,164.29,164.27,5.34442328]
[1754138988745,0.66,164.29,164.26,5.34442328]
[1754138990428,0.66,164.28,164.26,5.34442328]
[1754138992354,0.66,164.27,164.24,5.40442328]
[1754138992853,6.00442328,164.27,164.24,0.06]
[1754138993056,0.66,164.26,164.24,0.06]
[1754138994834,6.00442328,164.26,164.24,0.06]
[1754138995036,48.56442328,164.25,164.22,0.06]
[1754138995227,31.34442328,164.23,164.22,0.06]
[1754138995650,32.00442328,164.23,164.22,0.06]
[1754138997228,26.66,164.23,164.22,0.06]
[1754138997554,26.0,164.23,164.22,0.06]
[1754138997739,0.66,164.23,164.22,0.06]
[1754139000542,26.66,164.23,164.22,0.06]
[1754139000859,26.0,164.23,164.22,0.06]
[1754139001147,43.94,164.25,164.22,5.40442328]
[1754139001355,26.0,164.23,164.22,0.06]
[1754139002351,26.72,164.23,164.22,0.06]
[1754139002753,26.0,164.23,164.22,5.40442328]
[1754139002943,26.72,164.26,164.22,5.40442328]
[1754139003145,26.72,164.26,164.23,5.34442328]
[1754139004831,26.0,164.25,164.24,5.34442328]
[1754139005846,0.72,164.28,164.24,5.47442328]
[1754139005847,43.16,164.28,164.24,5.47442328]
[1754139006154,0.72,164.27,164.23,5.34442328]
[1754139006453,0.72,164.26,164.24,5.34442328]
[1754139007031,69.16,164.28,164.24,5.34442328]
[1754139007232,0.72,164.27,164.24,5.34442328]
[1754139008058,0.72,164.27,164.22,0.06]
[1754139008059,0.72,164.27,164.25,5.34442328]
[1754139008946,0.72,164.26,164.25,5.34442328]
[1754139009853,0.72,164.26,164.22,0.06]
[1754139010050,0.72,164.26,164.25,5.34442328]
[1754139010761,0.72,164.26,164.24,5.34442328]
[1754139010947,0.72,164.25,164.23,5.34442328]
[1754139011261,0.72,164.25,164.24,5.34442328]
[1754139011466,0.72,164.27,164.24,5.34442328]
[1754139011649,0.72,164.26,164.24,5.34442328]
[1754139011957,69.88,164.28,164.25,5.34442328]
[1754139012152,26.72,164.28,164.27,5.34442328]
[1754139012351,43.84,164.3,164.27,5.34442328]
[1754139012541,43.84,164.3,164.24,5.47442328]
[1754139012750,6.06442328,164.29,164.22,0.06]
[1754139012945,26.0,164.27,164.24,5.34442328]
[1754139013132,69.14,164.27,164.24,5.34442328]
[1754139013332,0.72,164.26,164.22,5.40442328]
[1754139013645,6.06442328,164.26,164.22,0.06]
[1754139013859,0.72,164.25,164.22,0.06]
[1754139015646,0.72,164.24,164.22,0.06]
[1754139016051,0.72,164.24,164.22,5.40442328]
[1754139018665,32.06442328,164.23,164.22,0.06]
[1754139018849,32.06442328,164.23,164.13,0.19]
[1754139019046,0.72,164.22,164.16,5.34442328]
[1754139019254,43.12,164.21,164.18,5.34442328]
[1754139019553,0.72,164.2,164.18,5.34442328]
[1754139020148,43.12,164.21,164.18,5.34442328]
[1754139020352,0.72,164.2,164.18,5.34442328]
[1754139020554,0.72,164.19,164.18,5.34442328]
[1754139020866,0.72,164.2,164.18,5.34442328]
[1754139021257,43.84,164.23,164.19,5.34442328]
[1754139021566,0.72,164.22,164.21,5.34442328]
[1754139021740,69.84,164.23,164.21,5.34442328]
[1754139022950,0.72,164.22,164.2,5.34442328]
[1754139023151,69.12,164.23,164.21,5.34442328]
[1754139023352,69.84,164.23,164.21,5.34442328]
[1754139023656,69.84,164.23,164.16,5.34442328]
[1754139023657,0.72,164.22,164.2,5.34442328]
[1754139023861,0.72,164.21,164.2,5.34442328]
[1754139024770,69.84,164.23,164.2,5.34442328]
[1754139024948,0.72,164.22,164.2,5.34442328]
[1754139025151,0.72,164.22,164.21,5.34442328]
[1754139025478,43.12,164.23,164.21,5.34442328]
[1754139025665,43.12,164.23,164.22,5.34442328]
[1754139025869,69.14,164.25,164.18,18.313341]
[1754139026168,69.14,164.25,164.24,5.34442328]
[1754139026365,26.0,164.25,164.24,5.34442328]
[1754139026570,43.84,164.27,164.24,5.34442328]
[1754139026758,43.84,164.27,164.26,5.34442328]
[1754139027068,69.84,164.27,164.26,5.34442328]
[1754139027267,43.84,164.27,164.26,5.34442328]
[1754139027465,69.84,164.27,164.26,5.34442328]
[1754139028452,69.84,164.27,164.18,0.19]
[1754139028654,0.72,164.26,164.22,5.34442328]
[1754139028953,47.93667409,164.26,164.22,5.34442328]
[1754139029261,0.72,164.25,164.22,5.34442328]
[1754139030353,26.72,164.24,164.23,5.34442328]
[1754139030870,26.72,164.24,164.22,5.34442328]
[1754139031170,69.82,164.25,164.23,5.34442328]
[1754139031566,69.82,164.25,164.24,5.34442328]
[1754139031770,69.82,164.25,164.2,0.06]
[1754139032078,69.82,164.25,164.24,5.34442328]
[1754139032280,26.0,164.25,164.24,5.34442328]
[1754139032754,69.85,164.27,164.24,5.34442328]
[1754139032955,69.85,164.27,164.26,5.34442328]
[1754139033155,73.95015598,164.27,164.26,5.34442328]
[1754139033356,30.85015598,164.27,164.26,5.34442328]
[1754139033880,30.85015598,164.27,164.25,5.34442328]
[1754139034051,26.03,164.27,164.25,5.34442328]
[1754139034248,0.72,164.26,164.25,5.34442328]
[1754139035666,0.72,164.26,164.22,5.344423]
[1754139035857,0.72,164.26,164.25,5.34442328]
[1754139037078,26.03,164.27,164.25,5.34442328]
[1754139037284,0.03,164.27,164.26,5.34442328]
[1754139038679,0.03,164.27,164.26,5.53442328]
[1754139039583,0.03,164.27,164.26,5.34442328]
[1754139041191,0.03,164.27,164.26,9.44617428]
[1754139042307,0.03,164.27,164.26,4.101751]
[1754139042593,0.75,164.27,164.24,5.34442328]
[1754139042899,0.75,164.27,164.25,5.34442328]
[1754139043088,0.75,164.27,164.23,5.34442328]
[1754139043261,0.75,164.27,164.2,0.06]
[1754139043262,6.09442328,164.27,164.22,5.34442328]
[1754139043457,43.76,164.26,164.23,5.34442328]
[1754139043662,43.04,164.26,164.23,5.34442328]
[1754139043862,0.72,164.25,164.23,5.34442328]
[1754139044062,0.72,164.25,164.2,5.404423]
[1754139044063,0.72,164.24,164.21,5.34442328]
[1754139044491,74.38442328,164.26,164.21,5.34442328]
[1754139044794,74.38442328,164.26,164.2,0.06]
[1754139045000,69.04,164.26,164.24,5.34442328]
[1754139045180,69.76,164.26,164.24,5.34442328]
[1754139045366,0.72,164.25,164.22,5.34442328]
[1754139045565,0.72,164.25,164.21,5.34442328]
[1754139046172,26.0,164.23,164.2,0.06]
[1754139046371,0.72,164.22,164.2,0.06]
[1754139046799,0.72,164.21,164.2,0.06]
[1754139047107,26.0,164.23,164.2,5.40442328]
[1754139047406,0.72,164.22,164.2,5.40442328]
[1754139047973,26.0,164.23,164.2,5.40442328]
[1754139048284,0.72,164.21,164.2,5.40442328]
[1754139048672,26.72,164.23,164.2,5.40442328]
[1754139048999,0.72,164.22,164.2,5.40442328]
[1754139049895,0.72,164.21,164.2,5.40442328]
[1754139050604,26.72,164.23,164.2,5.40442328]
[1754139050789,26.0,164.23,164.21,5.34442328]
[1754139051000,26.72,164.23,164.21,5.34442328]
[1754139051301,0.72,164.22,164.2,5.40442328]
[1754139052671,26.0,164.23,164.21,5.34442328]
[1754139052878,26.0,164.23,164.2,0.06]
[1754139053073,0.72,164.22,164.21,5.34442328]
[1754139053398,26.0,164.23,164.21,5.34442328]
[1754139053592,26.0,164.23,164.22,5.34442328]
[1754139053894,26.72,164.23,164.2,0.06]
[1754139054080,26.72,164.23,164.22,5.34442328]
[1754139054488,26.0,164.23,164.22,5.34442328]
[1754139054690,26.72,164.25,164.22,5.34442328]
[1754139055070,26.72,164.25,164.24,5.34442328]
[1754139055539,0.75,164.27,164.24,5.34442328]
[1754139055791,26.0,164.26,164.25,5.34442328]
[1754139055995,0.03,164.27,164.25,5.34442328]
[1754139056192,0.03,164.27,164.26,5.34442328]
[1754139056582,0.75,164.27,164.26,5.34442328]
[1754139058594,0.03,164.27,164.26,5.34442328]
[1754139059006,0.75,164.27,164.26,5.34442328]
[1754139059797,0.03,164.27,164.26,5.34442328]
[1754139064799,0.03,164.27,164.26,5.53442328]
[1754139065213,0.03,164.27,164.26,5.34442328]
[1754139065519,0.03,164.27,164.26,16.22326928]
[1754139065715,0.03,164.27,164.26,5.34442328]
[1754139066915,0.7,164.27,164.26,5.34442328]
[1754139068107,26.7,164.27,164.24,5.34442328]
[1754139068306,0.67,164.26,164.23,5.34442328]
[1754139068612,26.0,164.26,164.25,5.34442328]
[1754139068810,26.0,164.26,164.24,5.34442328]
[1754139069004,26.67,164.26,164.24,5.34442328]
[1754139069209,0.67,164.25,164.24,5.34442328]
[1754139069618,0.67,164.25,164.22,5.40442328]
[1754139069917,0.67,164.25,164.22,0.06]
[1754139072025,31.34442328,164.23,164.22,0.06]
[1754139072322,74.97442328,164.23,164.22,0.06]
[1754139073215,69.63,164.23,164.22,0.06]
[1754139075520,91.75910725,164.23,164.22,0.06]
[1754139075719,95.85205639,164.23,164.22,0.06]
[1754139076113,69.63,164.23,164.22,0.06]
[1754139076818,26.0,164.23,164.22,5.40442328]
[1754139077211,26.67,164.23,164.22,5.40442328]
[1754139077397,26.0,164.23,164.22,5.40442328]
[1754139078403,42.96,164.24,164.22,5.40442328]
[1754139078603,68.96,164.24,164.23,5.34442328]
[1754139079904,69.63,164.24,164.23,5.34442328]
[1754139080541,69.63,164.24,164.22,5.40442328]
[1754139081026,0.67,164.23,164.22,5.40442328]
[1754139082225,68.96,164.24,164.22,5.40442328]
[1754139083925,26.0,164.24,164.22,0.06]
[1754139084109,26.0,164.24,164.23,5.34442328]
[1754139084310,26.67,164.24,164.23,5.34442328]
[1754139084910,26.0,164.24,164.23,5.34442328]
[1754139085569,189.73,164.26,164.23,5.34442328]
[1754139085724,146.1,164.26,164.25,5.34442328]
[1754139085920,42.99,164.27,164.25,5.34442328]
[1754139085921,0.03,164.27,164.25,5.34442328]
[1754139086124,0.03,164.27,164.26,5.34442328]
[1754139087953,0.7,164.27,164.26,5.34442328]
[1754139088450,0.03,164.27,164.26,5.34442328]
[1754139089654,0.03,164.27,164.26,5.53442328]
[1754139090041,0.03,164.27,164.26,31.53442328]
[1754139091946,0.03,164.27,164.26,5.53442328]
[1754139096454,0.03,164.27,164.26,7.97486128]
[1754139096653,0.03,164.27,164.26,7.78486128]
[1754139096967,0.7,164.27,164.26,5.34442328]
[1754139098574,0.7,164.27,164.23,17.034684]
[1754139098752,0.7,164.27,164.22,0.06]
[1754139098960,0.7,164.27,164.24,5.34442328]
[1754139099557,0.7,164.27,164.25,5.34442328]
[1754139100644,0.03,164.27,164.26,5.34442328]
[1754139102075,0.7,164.27,164.26,5.34442328]
[1754139102452,0.03,164.27,164.26,5.34442328]
[1754139102771,0.7,164.27,164.26,5.34442328]
[1754139103670,0.03,164.27,164.26,5.34442328]
[1754139107575,0.03,164.27,164.26,5.53442328]
[1754139109069,0.03,164.27,164.26,7.97501028]
[1754139110249,0.03,164.27,164.26,24.75969425]
[1754139110471,0.03,164.29,164.26,24.75969425]
[1754139110654,0.03,164.29,164.28,5.34442328]
[1754139111066,0.03,164.29,164.28,5.53442328]
[1754139111560,0.2,164.32,164.31,5.34442328]
[1754139112075,0.2,164.32,164.31,10.68884656]
[1754139112972,0.03,164.34,164.31,10.87884656]
[1754139113276,0.03,164.36,164.33,5.34442328]
[1754139113479,0.03,164.41,164.35,5.34442328]
[1754139113480,0.7,164.41,164.35,5.34442328]
[1754139113678,0.03,164.41,164.4,5.34442328]
[1754139113868,0.03,164.41,164.4,10.68884656]
[1754139118761,0.03,164.41,164.4,13.12735056]
[1754139120666,0.7,164.41,164.4,7.78292728]
[1754139120865,0.03,164.41,164.4,13.12735056]
[1754139121359,0.03,164.41,164.4,13.31735056]
[1754139121680,0.03,164.43,164.4,30.10203453]
[1754139121896,0.03,164.43,164.42,22.12910725]
[1754139122760,0.03,164.43,164.42,24.56701725]
[1754139122969,0.1,164.44,164.43,16.78468397]
[1754139123281,0.81,164.49,164.43,22.31910725]
[1754139123482,0.81,164.49,164.48,5.34442328]
[1754139123888,0.1,164.49,164.48,5.34442328]
[1754139125570,0.81,164.49,164.48,5.34442328]
[1754139130292,0.1,164.49,164.48,5.34442328]
[1754139132169,0.1,164.49,164.48,23.62540128]
[1754139132497,0.81,164.49,164.48,23.62540128]
[1754139133501,0.1,164.49,164.48,23.62540128]
[1754139134005,0.81,164.49,164.48,23.62540128]
[1754139135772,0.1,164.49,164.48,23.62540128]
[1754139136885,0.1,164.49,164.48,18.280978]
[1754139137190,0.1,164.49,164.48,23.62540128]
[1754139137782,0.1,164.49,164.48,28.96982456]
[1754139138400,0.1,164.49,164.48,23.62540128]
[1754139139997,0.1,164.49,164.48,29.15982456]
[1754139141182,0.1,164.49,164.48,28.96982456]
[1754139142393,0.1,164.49,164.48,29.15982456]
[1754139143202,0.1,164.49,164.48,28.96982456]
[1754139143399,0.1,164.49,164.48,71.82982456]
[1754139144081,0.1,164.49,164.48,72.01982456]
[1754139145507,0.1,164.49,164.48,71.82982456]
[1754139151182,0.79,164.49,164.48,18.280978]
[1754139151503,0.79,164.49,164.48,23.62540128]
[1754139153802,0.1,164.49,164.48,23.62540128]
[1754139153986,0.1,164.49,164.48,28.96982456]
[1754139155714,0.1,164.49,164.48,29.15982456]
[1754139156406,0.1,164.49,164.48,45.94450853]
[1754139156990,0.03,164.51,164.49,16.78468397]
[1754139157305,0.03,164.51,164.5,48.18442328]
[1754139158119,0.72,164.51,164.5,5.34442328]
[1754139158288,0.72,164.51,164.5,48.18442328]
[1754139158494,0.03,164.51,164.5,48.18442328]
[1754139159190,0.03,164.51,164.5,64.96910725]
[1754139159590,0.03,164.51,164.5,65.15910725]
[1754139159903,0.1,164.53,164.51,16.78468397]
[1754139160110,0.1,164.53,164.52,48.18442328]
[1754139162035,0.79,164.53,164.52,50.62099628]
[1754139163609,0.1,164.53,164.52,50.62099628]
[1754139169814,0.72,164.58,164.52,67.59568025]
[1754139170004,0.72,164.58,164.57,5.34442328]
[1754139170005,0.03,164.58,164.57,5.34442328]
[1754139170193,0.03,164.58,164.57,48.16442328]
[1754139170604,0.03,164.58,164.57,50.60055128]
[1754139172210,0.72,164.58,164.57,50.60055128]
[1754139174324,0.03,164.58,164.57,50.60055128]
[1754139176643,0.72,164.58,164.57,50.60055128]
[1754139177220,0.03,164.6,164.57,93.57523525]
[1754139177540,0.03,164.6,164.59,5.34442328]
[1754139177698,0.03,164.6,164.59,48.16442328]
[1754139178522,0.03,164.61,164.59,48.35442328]
[1754139178702,0.03,164.61,164.6,5.34442328]
[1754139178905,0.03,164.61,164.6,7.77980928]
[1754139179921,0.03,164.61,164.6,7.96980928]
[1754139180229,0.72,164.61,164.6,7.77980928]
[1754139180608,0.72,164.61,164.6,2.435386]
[1754139180805,0.72,164.61,164.6,0.995386]
[1754139181126,6.06442328,164.61,164.6,0.315386]
[1754139181330,6.06442328,164.61,164.56,5.34442328]
[1754139181505,0.59,164.6,164.59,5.34442328]
[1754139181709,0.62,164.61,164.59,5.34442328]
[1754139181909,26.03,164.61,164.6,5.34442328]
[1754139182328,0.03,164.61,164.6,5.34442328]
[1754139183333,0.62,164.61,164.6,5.34442328]
[1754139183532,0.03,164.61,164.6,5.34442328]
[1754139185924,0.03,164.61,164.6,6.06442328]
[1754139186310,0.03,164.61,164.6,5.34442328]
[1754139187517,0.03,164.61,164.6,6.06442328]
[1754139188413,0.03,164.61,164.6,5.34442328]
[1754139188834,0.03,164.61,164.6,6.06442328]
[1754139189734,0.03,164.61,164.6,8.50010628]
[1754139193155,0.03,164.61,164.6,25.28479025]
[1754139193515,0.03,164.62,164.61,16.78468397]
[1754139193716,0.03,164.62,164.61,65.64910725]
[1754139195245,0.03,164.62,164.61,6.06442328]
[1754139195540,0.03,164.62,164.61,48.14442328]
[1754139198241,0.03,164.62,164.61,48.86442328]
[1754139199243,0.03,164.62,164.61,48.14442328]
[1754139199949,0.03,164.62,164.61,48.86442328]
[1754139200414,0.03,164.62,164.61,68.08449325]
[1754139200850,0.1,164.66,164.62,16.78468397]
[1754139201019,0.1,164.66,164.65,22.12910725]
[1754139201222,0.1,164.66,164.65,64.90910725]
[1754139201423,0.1,164.66,164.65,65.62910725]
[1754139201641,0.1,164.66,164.65,83.88894425]
[1754139203447,0.59,164.74,164.65,83.88894425]
[1754139203647,0.59,164.74,164.72,5.34442328]
[1754139203828,0.59,164.74,164.71,5.34442328]
[1754139204448,0.59,164.73,164.71,5.34442328]
[1754139206062,0.59,164.72,164.71,5.34442328]
[1754139206420,0.59,164.72,164.68,18.256504]
[1754139206625,31.34442328,164.76,164.69,48.12442328]
[1754139206626,0.59,164.71,164.69,48.12442328]
[1754139206857,0.59,164.7,164.69,42.78]
[1754139207941,0.59,164.7,164.68,48.12442328]
[1754139208857,0.59,164.69,164.68,48.12442328]
[1754139209264,0.59,164.69,164.62,0.72]
[1754139209565,5.93442328,164.69,164.65,5.344424]
[1754139209736,5.34442328,164.69,164.65,48.104424]
[1754139209939,5.34442328,164.67,164.65,5.344424]
[1754139210163,5.93442328,164.66,164.63,42.76]
[1754139210362,0.59,164.65,164.63,42.76]
[1754139211236,0.59,164.67,164.63,48.77442328]
[1754139211438,5.93442328,164.7,164.64,0.67]
[1754139211749,0.59,164.69,164.65,48.10442328]
[1754139211959,26.0,164.72,164.65,48.10442328]
[1754139212163,0.59,164.71,164.67,5.34442328]
[1754139212361,0.59,164.71,164.68,5.34442328]
[1754139212566,31.96442328,164.73,164.68,5.34442328]
[1754139212872,26.62,164.73,164.7,5.34442328]
[1754139213050,26.03,164.73,164.7,6.01442328]
[1754139213637,26.03,164.73,164.7,5.34442328]
[1754139213968,26.62,164.73,164.7,5.34442328]
[1754139214553,0.59,164.72,164.68,42.78]
[1754139214756,0.59,164.72,164.69,5.34442328]
[1754139214953,26.03,164.73,164.69,5.34442328]
[1754139215167,26.03,164.73,164.7,5.34442328]
[1754139215347,26.62,164.73,164.7,5.34442328]
[1754139216167,0.59,164.72,164.68,42.78]
[1754139216369,0.59,164.72,164.69,5.34442328]
[1754139216941,0.59,164.72,164.68,48.12442328]
[1754139217355,0.59,164.72,164.69,5.34442328]
[1754139217684,31.37442328,164.73,164.69,5.34442328]
[1754139217977,26.62,164.73,164.69,5.34442328]
[1754139218685,0.03,164.73,164.71,5.34442328]
[1754139218976,0.03,164.73,164.71,6.01442328]
[1754139219943,0.03,164.73,164.72,0.67]
[1754139220166,0.03,164.73,164.72,6.01442328]
[1754139220738,0.03,164.73,164.71,5.34442328]
[1754139221844,0.03,164.73,164.7,6.01442328]
[1754139222242,0.62,164.73,164.69,42.76]
[1754139222568,0.62,164.73,164.69,48.10442328]
[1754139222758,0.03,164.73,164.7,5.34442328]
[1754139223156,0.03,164.73,164.7,6.01442328]
[1754139223546,0.03,164.73,164.7,5.34442328]